[Event "Croatian junior league 2021"]
[Site "Rabac"]
[Date "2021.04.06"]
[Round "1.11"]
[White "Damjanovic, Stjepan"]
[Black "Karlusic, Luka"]
[Result "0-1"]
[ECO "B21"]
[WhiteElo "1890"]
[BlackElo "2047"]
[Annotator "ChessBase"]
[PlyCount "88"]
[EventDate "2021.04.06"]
[EventType "swiss"]
[EventCountry "CRO"]
[SourceTitle "playchess.com"]
[Source "ChessBase"]
[SourceQuality "1"]
[TimeControl "5400+30"]

1. e4 {[%emt 0:00:30]} c5 {[%emt 0:00:00]} 2. d4 {[%emt 0:00:00]} cxd4 {[%emt 0:00:00]} 3. c3 {[%emt 0:00:00]} dxc3 4. Nxc3 e6 5. Nf3 a6 6. Bc4 Nc6 7. O-O Nge7 8. Be3 Ng6 9. a4 Be7 10. Qe2 O-O 11. Rfd1 b6 12. Nd4 Qc7 13. Rac1 Bc5 14. Nxc6 Bxe3 15. Qxe3 dxc6 16. b4 Bb7 17. Rd2 Rfd8 18. Rcd1 Rxd2 19. Qxd2 Qe7 20. Be2 Kf8 21. Qd4 Qc7 22. Na2 e5 23. Qd7 Qxd7 24. Rxd7 Bc8 25. Rc7 Ne7 26. a5 bxa5 27. bxa5 Ke8 28. Nb4 Kd8 29. Nd5 cxd5 30. Rc5 Rb8 31. f3 dxe4 32. Rxe5 exf3 33. Bxf3 Rb5 34. Re4 Rxa5 35. Rh4 Bf5 36. Rd4+ Kc7 37. g4 Be6 38. Be2 Ra1+ 39. Kf2 a5 40. Bb5 Nd5 41. h3 Kb6 42. Be8 Kc5 43. Rd3 Nf6 44. Rd8 Nxe8 0-1

[Event "Croatian junior league 2021"]
[Site "Rabac"]
[Date "2021.04.06"]
[Round "1.12"]
[White "Mahecic, Lovre"]
[Black "Mandaric, Fran"]
[Result "1-0"]
[ECO "A25"]
[WhiteElo "1958"]
[BlackElo "1684"]
[Annotator "ChessBase"]
[PlyCount "61"]
[EventDate "2021.04.06"]
[EventType "swiss"]
[EventCountry "CRO"]
[SourceTitle "playchess.com"]
[Source "ChessBase"]
[SourceQuality "1"]
[TimeControl "5400+30"]

1. c4 {[%emt 0:00:30]} e5 {[%emt 0:00:30]} 2. Nc3 {[%emt 0:00:00]} Nc6 {[%emt 0:00:30]} 3. g3 {[%emt 0:00:00]} Nf6 {[%emt 0:01:30]} 4. Bg2 {[%emt 0:00:00]} Be7 {[%emt 0:06:30]} 5. e3 {[%emt 0:00:00]} d6 {[%emt 0:01:30]} 6. Nge2 {[%emt 0:00:30]} O-O {[%emt 0:04:30]} 7. O-O {[%emt 0:00:30]} Be6 {[%emt 0:02:30]} 8. b3 {[%emt 0:00:30]} Qd7 {[%emt 0:11:30]} 9. d4 {[%emt 0:04:30]} Bh3 {[%emt 0:15:30]} 10. Bb2 {[%emt 0:05:30]} Bxg2 {[%emt 0:18:30]} 11. Kxg2 {[%emt 0:00:00]} Qf5 {[%emt 0:05:30]} 12. a3 {[%emt 0:04:00]} a6 {[%emt 0:05:30]} 13. d5 {[%emt 0:06:30]} Na7 {[%emt 0:02:30]} 14. f3 {[%emt 0:00:00]} Qh5 {[%emt 0:03:21]} 15. e4 {[%emt 0:00:00]} g6 {[%emt 0:02:35]} 16. Qd3 {[%emt 0:02:30]} Nd7 {[%emt 0:01:33]} 17. b4 {[%emt 0:01:30]} f5 {[%emt 0:00:40]} 18. Rac1 {[%emt 0:03:30]} f4 {[%emt 0:01:32]} 19. g4 {[%emt 0:02:30]} Qh4 {[%emt 0:00:48]} 20. Na4 {[%emt 0:02:30]} h5 {[%emt 0:00:51]} 21. h3 {[%emt 0:00:30]} Kg7 {[%emt 0:05:40]} 22. c5 {[%emt 0:01:30]} Nf6 {[%emt 0:01:32]} 23. Rh1 {[%emt 0:00:30]} Rh8 {[%emt 0:02:53]} 24. cxd6 {[%emt 0:00:30]} Bxd6 {[%emt 0:00:16]} 25. Nxf4 {[%emt 0:01:30]} exf4 {[%emt 0:01:01]} 26. e5 {[%emt 0:00:30]} Qg3+ {[%emt 0:00:33]} 27. Kf1 {[%emt 0:00:00]} hxg4 {[%emt 0:00:24]} 28. exd6 {[%emt 0:03:00]} gxh3 {[%emt 0:01:39]} 29. Bxf6+ {[%emt 0:05:30]} Kxf6 {[%emt 0:00:09]} 30. Qd4+ {[%emt 0:01:30]} Kf7 {[%emt 0:00:01]} 31. Rxc7+ {[%emt 0:00:30]} 1-0

[Event "Croatian junior league 2021"]
[Site "Rabac"]
[Date "2021.04.06"]
[Round "1.13"]
[White "Juric, Ester"]
[Black "Novosel, Lovro"]
[Result "0-1"]
[ECO "D38"]
[WhiteElo "1587"]
[BlackElo "1997"]
[Annotator "ChessBase"]
[PlyCount "50"]
[EventDate "2021.04.06"]
[EventType "swiss"]
[EventCountry "CRO"]
[SourceTitle "playchess.com"]
[Source "ChessBase"]
[SourceQuality "1"]
[TimeControl "5400+30"]

1. d4 {[%emt 0:00:30]} Nf6 {[%emt 0:00:30]} 2. c4 {[%emt 0:00:00]} e6 {[%emt 0:00:30]} 3. Nc3 {[%emt 0:01:00]} d5 {[%emt 0:00:30]} 4. Bg5 {[%emt 0:00:30]} Bb4 {[%emt 0:02:30]} 5. Nf3 {[%emt 0:08:30]} Nbd7 {[%emt 0:00:30]} 6. e3 {[%emt 0:00:30]} c5 {[%emt 0:01:30]} 7. Be2 {[%emt 0:06:30]} Qa5 {[%emt 0:02:30]} 8. Bxf6 {[%emt 0:04:30]} Nxf6 {[%emt 0:05:30]} 9. Qb3 {[%emt 0:02:30]} cxd4 {[%emt 0:03:30]} 10. Nxd4 {[%emt 0:05:30]} Bxc3+ {[%emt 0:02:30]} 11. bxc3 {[%emt 0:00:30]} O-O {[%emt 0:01:30]} 12. Rc1 {[%emt 0:04:30]} e5 {[%emt 0:13:30]} 13. Nf3 {[%emt 0:03:30]} dxc4 {[%emt 0:01:30]} 14. Bxc4 {[%emt 0:01:30]} e4 {[%emt 0:00:30]} 15. Nd4 {[%emt 0:02:30]} Qg5 {[%emt 0:00:30]} 16. Bf1 {[%emt 0:08:30]} Nd7 {[%emt 0:02:30]} 17. Qb5 {[%emt 0:04:30]} Ne5 {[%emt 0:03:30]} 18. Qb1 {[%emt 0:12:30]} f5 {[%emt 0:05:30]} 19. Rg1 {[%emt 0:16:36]} Kh8 {[%emt 0:03:30]} 20. Be2 {[%emt 0:03:03]} b6 {[%emt 0:02:30]} 21. Qb5 {[%emt 0:02:05]} f4 {[%emt 0:00:30]} 22. Nc2 {[%emt 0:06:41]} Bd7 {[%emt 0:02:30]} 23. Qb1 {[%emt 0:01:34]} Nd3+ {[%emt 0:00:30]} 24. Bxd3 {[%emt 0:00:05]} exd3 {[%emt 0:00:30]} 25. Nd4 {[%emt 0:01:00]} fxe3 {[%emt 0:00:00]} 0-1

[Event "Croatian junior league 2021"]
[Site "Rabac"]
[Date "2021.04.06"]
[Round "1.14"]
[White "Mrvac, Petar"]
[Black "Markovic, Marko"]
[Result "1-0"]
[ECO "B30"]
[WhiteElo "1908"]
[BlackElo "2232"]
[Annotator "ChessBase"]
[PlyCount "90"]
[EventDate "2021.04.06"]
[EventType "swiss"]
[EventCountry "CRO"]
[SourceTitle "playchess.com"]
[Source "ChessBase"]
[SourceQuality "1"]
[TimeControl "5400+30"]

1. e4 {[%emt 0:00:30]} c5 {[%emt 0:00:30]} 2. Nf3 {[%emt 0:00:00]} Nc6 {[%emt 0:00:00]} 3. Bc4 {[%emt 0:00:00]} g6 {[%emt 0:00:00]} 4. Nc3 {[%emt 0:00:30]} Bg7 {[%emt 0:00:30]} 5. d3 {[%emt 0:00:30]} d6 {[%emt 0:02:30]} 6. a3 {[%emt 0:00:30]} Nf6 {[%emt 0:00:30]} 7. Bf4 {[%emt 0:00:30]} O-O {[%emt 0:03:30]} 8. Qd2 {[%emt 0:00:30]} a6 {[%emt 0:04:30]} 9. Bh6 {[%emt 0:03:30]} Bg4 {[%emt 0:01:30]} 10. Bxg7 {[%emt 0:13:30]} Kxg7 {[%emt 0:00:30]} 11. Ba2 {[%emt 0:02:30]} b5 {[%emt 0:16:30]} 12. Nd5 {[%emt 0:07:30]} e6 {[%emt 0:03:30]} 13. Ne3 {[%emt 0:03:30]} Bxf3 {[%emt 0:01:30]} 14. gxf3 {[%emt 0:00:30]} Nd4 {[%emt 0:00:30]} 15. Qd1 {[%emt 0:00:30]} b4 {[%emt 0:09:30]} 16. axb4 {[%emt 0:04:30]} cxb4 {[%emt 0:00:30]} 17. c3 {[%emt 0:04:30]} bxc3 {[%emt 0:01:30]} 18. bxc3 {[%emt 0:00:00]} Qa5 {[%emt 0:02:30]} 19. Kd2 {[%emt 0:01:00]} d5 {[%emt 0:02:30]} 20. Bxd5 {[%emt 0:04:30]} Qb6 {[%emt 0:09:30]} 21. Nc4 {[%emt 0:09:30]} Nb3+ {[%emt 0:03:30]} 22. Ke2 {[%emt 0:01:30]} Qb8 {[%emt 0:00:30]} 23. Bxa8 {[%emt 0:01:30]} Nxa1 {[%emt 0:00:30]} 24. Qxa1 {[%emt 0:01:30]} Qxa8 {[%emt 0:00:00]} 25. Qa5 {[%emt 0:02:30]} Qc6 {[%emt 0:05:00]} 26. Rb1 {[%emt 0:03:30]} Nd7 {[%emt 0:00:30]} 27. Ne5 {[%emt 0:10:30]} Nxe5 {[%emt 0:03:30]} 28. Qxe5+ {[%emt 0:00:00]} f6 {[%emt 0:04:30]} 29. Qa5 {[%emt 0:01:00]} Rc8 {[%emt 0:01:30]} 30. c4 {[%emt 0:02:30]} Ra8 {[%emt 0:02:30]} 31. Rb2 {[%emt 0:02:30]} Ra7 {[%emt 0:06:16]} 32. Qd8 {[%emt 0:04:04]} Rb7 {[%emt 0:10:30]} 33. Ra2 {[%emt 0:03:00]} Rb3 {[%emt 0:01:50]} 34. Qe7+ {[%emt 0:11:11]} Kh6 {[%emt 0:00:00]} 35. Qf8+ {[%emt 0:03:13]} Kg5 {[%emt 0:00:00]} 36. f4+ {[%emt 0:00:30]} Kxf4 {[%emt 0:00:00]} 37. Qxf6+ {[%emt 0:00:30]} Kg4 {[%emt 0:00:00]} 38. Qf3+ {[%emt 0:00:30]} Kh4 {[%emt 0:00:00]} 39. Qf4+ {[%emt 0:00:30]} Kh5 {[%emt 0:00:00]} 40. Ra5+ {[%emt 0:00:30]} Rb5 {[%emt 0:00:00]} 41. cxb5 {[%emt 0:00:30]} axb5 {[%emt 0:00:00]} 42. Qe5+ {[%emt 0:00:30]} Kh6 {[%emt 0:00:00]} 43. Rxb5 {[%emt 0:00:30]} Qc2+ {[%emt 0:00:20]} 44. Kf1 {[%emt 0:00:30]} Qd1+ {[%emt 0:00:30]} 45. Kg2 {[%emt 0:00:30]} Qxd3 {[%emt 0:00:30]} 1-0

[Event "Croatian junior league 2021"]
[Site "Rabac"]
[Date "2021.04.06"]
[Round "1.21"]
[White "Cotic, Borna"]
[Black "Colev, Ivor"]
[Result "1-0"]
[ECO "B54"]
[WhiteElo "2120"]
[BlackElo "1847"]
[Annotator "ChessBase"]
[PlyCount "55"]
[EventDate "2021.04.06"]
[EventType "swiss"]
[EventCountry "CRO"]
[SourceTitle "playchess.com"]
[Source "ChessBase"]
[SourceQuality "1"]
[TimeControl "5400+30"]

1. e4 {[%emt 0:06:30]} c5 {[%emt 0:00:30]} 2. Nf3 {[%emt 0:00:30]} d6 {[%emt 0:00:00]} 3. d4 {[%emt 0:00:30]} cxd4 {[%emt 0:00:00]} 4. Nxd4 {[%emt 0:00:00]} Nf6 {[%emt 0:00:00]} 5. f3 {[%emt 0:00:00]} e6 {[%emt 0:00:00]} 6. c4 {[%emt 0:00:30]} Be7 {[%emt 0:01:30]} 7. Nc3 {[%emt 0:00:30]} Nc6 {[%emt 0:00:30]} 8. Be3 {[%emt 0:00:30]} O-O {[%emt 0:00:30]} 9. Be2 {[%emt 0:02:30]} Bd7 {[%emt 0:00:30]} 10. O-O {[%emt 0:01:30]} a6 {[%emt 0:05:30]} 11. Qd2 {[%emt 0:01:30]} Rc8 {[%emt 0:00:30]} 12. Rac1 {[%emt 0:01:30]} Ne5 {[%emt 0:03:30]} 13. b3 {[%emt 0:03:30]} Kh8 {[%emt 0:05:30]} 14. Rfd1 {[%emt 0:06:30]} Qa5 {[%emt 0:04:30]} 15. a4 {[%emt 0:20:30]} Rfe8 {[%emt 0:11:30]} 16. Nc2 {[%emt 0:15:30]} Red8 {[%emt 0:08:30]} 17. h3 {[%emt 0:09:30]} Nc6 {[%emt 0:15:30]} 18. b4 {[%emt 0:16:34]} Qc7 {[%emt 0:05:30]} 19. a5 {[%emt 0:01:33]} Qb8 {[%emt 0:01:30]} 20. Bb6 {[%emt 0:03:19]} Rf8 {[%emt 0:07:30]} 21. b5 {[%emt 0:01:04]} Ne5 {[%emt 0:01:30]} 22. Ne3 {[%emt 0:00:40]} Nh5 {[%emt 0:05:30]} 23. Bd4 {[%emt 0:01:49]} Bg5 {[%emt 0:01:30]} 24. Na4 {[%emt 0:01:09]} Rcd8 {[%emt 0:04:35]} 25. Nb6 {[%emt 0:00:38]} f5 {[%emt 0:02:02]} 26. Qc3 {[%emt 0:03:24]} Ng3 {[%emt 0:02:05]} 27. Bf1 {[%emt 0:00:13]} Bf4 {[%emt 0:01:35]} 28. exf5 {[%emt 0:00:00]} 1-0

[Event "Croatian junior league 2021"]
[Site "Rabac"]
[Date "2021.04.06"]
[Round "1.22"]
[White "Perko, Bartol"]
[Black "Simunic, Krunoslav"]
[Result "1/2-1/2"]
[ECO "D35"]
[WhiteElo "1766"]
[BlackElo "1999"]
[Annotator "ChessBase"]
[PlyCount "83"]
[EventDate "2021.04.06"]
[EventType "swiss"]
[EventCountry "CRO"]
[SourceTitle "playchess.com"]
[Source "ChessBase"]
[SourceQuality "1"]
[TimeControl "5400+30"]

1. c4 {[%emt 0:00:30]} e6 {[%emt 0:06:30]} 2. Nc3 {[%emt 0:00:30]} d5 {[%emt 0:01:30]} 3. cxd5 {[%emt 0:00:00]} exd5 {[%emt 0:00:30]} 4. d4 {[%emt 0:00:00]} Be7 {[%emt 0:03:30]} 5. Nf3 {[%emt 0:00:30]} Nf6 {[%emt 0:00:30]} 6. Bf4 {[%emt 0:00:00]} c6 {[%emt 0:02:30]} 7. e3 {[%emt 0:00:00]} Bf5 {[%emt 0:00:00]} 8. a3 {[%emt 0:04:30]} a5 {[%emt 0:05:00]} 9. Bd3 {[%emt 0:06:30]} Bxd3 {[%emt 0:01:30]} 10. Qxd3 {[%emt 0:00:00]} O-O {[%emt 0:02:30]} 11. h3 {[%emt 0:02:00]} Nbd7 {[%emt 0:04:30]} 12. O-O {[%emt 0:01:30]} Re8 {[%emt 0:06:30]} 13. Qc2 {[%emt 0:06:30]} Rc8 {[%emt 0:03:30]} 14. Rac1 {[%emt 0:02:30]} b5 {[%emt 0:09:30]} 15. Rfd1 {[%emt 0:03:30]} Qb6 {[%emt 0:04:30]} 16. Ne5 {[%emt 0:08:30]} Qb7 {[%emt 0:03:30]} 17. Ne2 {[%emt 0:06:30]} Nxe5 {[%emt 0:05:30]} 18. dxe5 {[%emt 0:01:30]} Ne4 {[%emt 0:08:30]} 19. Nd4 {[%emt 0:03:30]} c5 {[%emt 0:03:30]} 20. Nf5 {[%emt 0:00:30]} c4 {[%emt 0:00:30]} 21. Nxe7+ {[%emt 0:10:30]} Rxe7 {[%emt 0:00:30]} 22. f3 {[%emt 0:00:30]} Nc5 {[%emt 0:00:30]} 23. Qf5 {[%emt 0:01:30]} Rce8 {[%emt 0:04:30]} 24. Bg3 {[%emt 0:03:30]} Nd3 {[%emt 0:00:30]} 25. Rxd3 {[%emt 0:00:00]} cxd3 {[%emt 0:00:30]} 26. Qxd3 {[%emt 0:00:00]} Qb6 {[%emt 0:10:24]} 27. f4 {[%emt 0:00:30]} Rd7 {[%emt 0:02:00]} 28. Bf2 {[%emt 0:00:30]} b4 {[%emt 0:03:34]} 29. Qb3 {[%emt 0:03:30]} Qb7 {[%emt 0:02:24]} 30. Qa4 {[%emt 0:00:30]} Ra8 {[%emt 0:03:20]} 31. Rc5 {[%emt 0:01:30]} bxa3 {[%emt 0:01:24]} 32. bxa3 {[%emt 0:00:30]} Qa7 {[%emt 0:00:59]} 33. e4 {[%emt 0:01:30]} Qb7 {[%emt 0:00:54]} 34. Rb5 {[%emt 0:00:30]} Qc7 {[%emt 0:00:42]} 35. exd5 {[%emt 0:00:30]} Qc1+ {[%emt 0:00:09]} 36. Kh2 {[%emt 0:00:30]} Qd2 {[%emt 0:00:31]} 37. Rxa5 {[%emt 0:01:30]} Rxa5 {[%emt 0:00:45]} 38. Qxd7 {[%emt 0:00:00]} h6 {[%emt 0:00:00]} 39. Qc8+ {[%emt 0:31:09]} Kh7 {[%emt 0:00:00]} 40. Qf5+ {[%emt 0:00:30]} Kg8 {[%emt 0:00:00]} 41. Qc8+ {[%emt 0:00:30]} Kh7 {[%emt 0:00:00]} 42. Qf5+ {[%emt 0:00:30]} 1/2-1/2

[Event "Croatian junior league 2021"]
[Site "Rabac"]
[Date "2021.04.06"]
[Round "1.23"]
[White "Baric, Marko"]
[Black "Poljan, Max"]
[Result "1/2-1/2"]
[ECO "B40"]
[WhiteElo "1936"]
[BlackElo "1573"]
[Annotator "ChessBase"]
[PlyCount "79"]
[EventDate "2021.04.06"]
[EventType "swiss"]
[EventCountry "CRO"]
[SourceTitle "playchess.com"]
[Source "ChessBase"]
[SourceQuality "1"]
[TimeControl "5400+30"]

1. e4 {[%emt 0:07:30]} c5 {[%emt 0:00:30]} 2. Nf3 {[%emt 0:00:30]} e6 {[%emt 0:00:00]} 3. c4 {[%emt 0:00:30]} Nc6 {[%emt 0:00:00]} 4. Be2 {[%emt 0:00:30]} e5 {[%emt 0:00:30]} 5. d3 {[%emt 0:01:30]} d6 {[%emt 0:01:30]} 6. O-O {[%emt 0:00:30]} g6 {[%emt 0:00:30]} 7. Nc3 {[%emt 0:00:30]} Be6 {[%emt 0:01:30]} 8. a3 {[%emt 0:05:30]} Bg7 {[%emt 0:02:30]} 9. Nd5 {[%emt 0:01:30]} Nge7 {[%emt 0:01:30]} 10. b4 {[%emt 0:03:30]} O-O {[%emt 0:05:30]} 11. Rb1 {[%emt 0:00:30]} b6 {[%emt 0:01:30]} 12. Re1 {[%emt 0:08:30]} Qd7 {[%emt 0:03:30]} 13. Bd2 {[%emt 0:05:30]} Bxd5 {[%emt 0:01:30]} 14. cxd5 {[%emt 0:00:30]} Nd4 {[%emt 0:00:30]} 15. bxc5 {[%emt 0:06:30]} bxc5 {[%emt 0:02:30]} 16. Nxd4 {[%emt 0:00:30]} cxd4 {[%emt 0:02:30]} 17. Rb2 {[%emt 0:07:30]} Rab8 {[%emt 0:03:30]} 18. Qb1 {[%emt 0:00:30]} Rxb2 {[%emt 0:05:30]} 19. Qxb2 {[%emt 0:00:30]} Rc8 {[%emt 0:00:00]} 20. Bb4 {[%emt 0:07:30]} Qc7 {[%emt 0:04:00]} 21. Qd2 {[%emt 0:00:30]} h5 {[%emt 0:01:30]} 22. Rb1 {[%emt 0:05:30]} Kh7 {[%emt 0:07:30]} 23. Bd1 {[%emt 0:02:30]} Bh6 {[%emt 0:01:30]} 24. Qe1 {[%emt 0:00:30]} Qd7 {[%emt 0:06:30]} 25. Bb3 {[%emt 0:03:30]} f5 {[%emt 0:01:30]} 26. Qd1 {[%emt 0:09:30]} fxe4 {[%emt 0:07:30]} 27. dxe4 {[%emt 0:00:00]} Qc7 {[%emt 0:03:30]} 28. a4 {[%emt 0:06:06]} Ng8 {[%emt 0:04:30]} 29. a5 {[%emt 0:05:06]} Nf6 {[%emt 0:04:30]} 30. Qd3 {[%emt 0:00:38]} Nd7 {[%emt 0:03:30]} 31. a6 {[%emt 0:03:43]} Nc5 {[%emt 0:01:30]} 32. Bxc5 {[%emt 0:00:01]} Qxc5 {[%emt 0:00:30]} 33. g3 {[%emt 0:02:18]} Rb8 {[%emt 0:04:17]} 34. Bc2 {[%emt 0:01:22]} Rb4 {[%emt 0:01:02]} 35. Rxb4 {[%emt 0:01:00]} Qxb4 {[%emt 0:00:07]} 36. Qf3 {[%emt 0:01:01]} Kg7 {[%emt 0:00:55]} 37. Bd3 {[%emt 0:00:09]} Qc3 {[%emt 0:00:49]} 38. Kg2 {[%emt 0:00:04]} Qd2 {[%emt 0:01:43]} 39. h4 {[%emt 0:00:16]} Be3 {[%emt 0:03:23]} 40. Be2 1/2-1/2

[Event "Croatian junior league 2021"]
[Site "Rabac"]
[Date "2021.04.06"]
[Round "1.24"]
[White "Hergotic, Mihael"]
[Black "Denic, Marin"]
[Result "0-1"]
[ECO "C50"]
[WhiteElo "1476"]
[BlackElo "1914"]
[Annotator "ChessBase"]
[PlyCount "84"]
[EventDate "2021.04.06"]
[EventType "swiss"]
[EventCountry "CRO"]
[SourceTitle "playchess.com"]
[Source "ChessBase"]
[SourceQuality "1"]
[TimeControl "5400+30"]

1. e4 {[%emt 0:00:30]} e5 {[%emt 0:05:30]} 2. Nf3 {[%emt 0:01:30]} Nc6 {[%emt 0:00:30]} 3. Bc4 {[%emt 0:00:30]} Bc5 {[%emt 0:00:30]} 4. d3 {[%emt 0:01:30]} Nf6 {[%emt 0:00:30]} 5. Bg5 {[%emt 0:01:30]} O-O {[%emt 0:01:30]} 6. O-O {[%emt 0:00:30]} h6 {[%emt 0:06:30]} 7. Bh4 {[%emt 0:00:30]} g5 {[%emt 0:01:30]} 8. Bg3 {[%emt 0:00:30]} d6 {[%emt 0:01:30]} 9. h3 {[%emt 0:04:30]} Be6 {[%emt 0:10:30]} 10. Bb3 {[%emt 0:06:30]} Qd7 {[%emt 0:10:30]} 11. Kh2 {[%emt 0:09:30]} Rae8 {[%emt 0:14:30]} 12. Nc3 {[%emt 0:03:30]} a6 {[%emt 0:08:30]} 13. Qd2 {[%emt 0:03:30]} Nh7 {[%emt 0:16:10]} 14. Nd5 {[%emt 0:05:30]} f5 {[%emt 0:02:50]} 15. exf5 {[%emt 0:04:30]} Rxf5 {[%emt 0:01:16]} 16. Ne3 {[%emt 0:00:30]} Rf7 {[%emt 0:05:57]} 17. Ng4 {[%emt 0:02:30]} Kg7 {[%emt 0:00:50]} 18. Rae1 {[%emt 0:03:30]} Bxb3 {[%emt 0:03:48]} 19. axb3 {[%emt 0:00:00]} h5 {[%emt 0:00:47]} 20. Nxg5 {[%emt 0:05:00]} hxg4 {[%emt 0:00:30]} 21. Nxf7 {[%emt 0:00:30]} Qxf7 {[%emt 0:00:30]} 22. hxg4 {[%emt 0:00:30]} Qg6 {[%emt 0:01:27]} 23. Rh1 {[%emt 0:10:30]} Qxg4 {[%emt 0:03:03]} 24. Kg1 {[%emt 0:00:30]} Ng5 {[%emt 0:00:47]} 25. Kf1 {[%emt 0:03:30]} Rf8 {[%emt 0:00:30]} 26. Bh4 {[%emt 0:00:30]} Rh8 {[%emt 0:01:57]} 27. Qe2 {[%emt 0:02:30]} Rxh4 {[%emt 0:00:25]} 28. Qxg4 {[%emt 0:01:30]} Rxg4 {[%emt 0:00:02]} 29. c3 {[%emt 0:01:30]} Rf4 {[%emt 0:00:32]} 30. Re2 {[%emt 0:00:30]} d5 {[%emt 0:01:03]} 31. Rh5 {[%emt 0:00:30]} Kg6 {[%emt 0:00:24]} 32. Rh8 {[%emt 0:00:30]} Bf8 {[%emt 0:00:34]} 33. c4 {[%emt 0:01:30]} dxc4 {[%emt 0:00:34]} 34. bxc4 {[%emt 0:00:30]} Nh7 {[%emt 0:00:25]} 35. Rg8+ {[%emt 0:00:00]} Kf7 {[%emt 0:00:06]} 36. Rg3 {[%emt 0:00:00]} Bc5 {[%emt 0:00:34]} 37. Rh3 {[%emt 0:01:30]} Kg6 {[%emt 0:00:44]} 38. f3 {[%emt 0:01:30]} Bd4 {[%emt 0:00:32]} 39. b3 {[%emt 0:00:30]} Nb4 {[%emt 0:00:03]} 40. Rd2 {[%emt 0:00:30]} c6 {[%emt 0:01:06]} 41. Ke2 {[%emt 0:00:30]} Ng5 {[%emt 0:00:23]} 42. Rh8 {[%emt 0:00:30]} Rf7 {[%emt 0:00:00]} 0-1

[Event "Croatian junior league 2021"]
[Site "Rabac"]
[Date "2021.04.06"]
[Round "1.31"]
[White "Cvitan, Ena"]
[Black "Levacic, Matej"]
[Result "1-0"]
[ECO "B31"]
[WhiteElo "2263"]
[BlackElo "2144"]
[Annotator "ChessBase"]
[PlyCount "103"]
[EventDate "2021.04.06"]
[EventType "swiss"]
[EventCountry "CRO"]
[SourceTitle "playchess.com"]
[Source "ChessBase"]
[SourceQuality "1"]
[TimeControl "5400+30"]

1. e4 {[%emt 0:08:30]} c5 {[%emt 0:01:30]} 2. Nf3 {[%emt 0:01:30]} Nc6 {[%emt 0:01:30]} 3. Bb5 {[%emt 0:01:30]} g6 {[%emt 0:00:30]} 4. Bxc6 {[%emt 0:01:30]} dxc6 {[%emt 0:00:30]} 5. O-O {[%emt 0:00:30]} Bg7 {[%emt 0:00:30]} 6. d3 {[%emt 0:02:30]} Nf6 {[%emt 0:03:30]} 7. h3 {[%emt 0:03:30]} Nd7 {[%emt 0:01:30]} 8. c3 {[%emt 0:02:30]} e5 {[%emt 0:02:30]} 9. Bg5 {[%emt 0:07:30]} Qc7 {[%emt 0:01:30]} 10. Qd2 {[%emt 0:00:30]} h6 {[%emt 0:17:30]} 11. Be3 {[%emt 0:00:30]} b6 {[%emt 0:02:30]} 12. Na3 {[%emt 0:02:30]} Nf6 {[%emt 0:04:30]} 13. Nc4 {[%emt 0:07:30]} Nh5 {[%emt 0:01:30]} 14. a4 {[%emt 0:03:30]} Be6 {[%emt 0:06:30]} 15. Rfd1 {[%emt 0:11:30]} g5 {[%emt 0:05:30]} 16. Qe2 {[%emt 0:04:30]} Nf4 {[%emt 0:11:30]} 17. Bxf4 {[%emt 0:00:30]} exf4 {[%emt 0:03:30]} 18. d4 {[%emt 0:02:30]} cxd4 {[%emt 0:09:30]} 19. Nxd4 {[%emt 0:02:30]} Bxd4 {[%emt 0:03:30]} 20. Rxd4 {[%emt 0:07:30]} O-O {[%emt 0:00:34]} 21. Nd6 {[%emt 0:01:30]} Rad8 {[%emt 0:01:45]} 22. Rad1 {[%emt 0:01:30]} c5 {[%emt 0:03:13]} 23. R4d3 {[%emt 0:04:30]} Bb3 {[%emt 0:06:38]} 24. R1d2 {[%emt 0:00:30]} Be6 {[%emt 0:02:16]} 25. Qh5 {[%emt 0:01:30]} Kh7 {[%emt 0:01:07]} 26. h4 {[%emt 0:01:17]} f6 {[%emt 0:01:16]} 27. Nf5 {[%emt 0:06:40]} Bxf5 {[%emt 0:00:32]} 28. Rxd8 {[%emt 0:00:20]} Rxd8 {[%emt 0:00:40]} 29. Rxd8 {[%emt 0:00:10]} Qxd8 {[%emt 0:00:56]} 30. Qf7+ {[%emt 0:00:26]} Kh8 {[%emt 0:00:06]} 31. exf5 {[%emt 0:00:06]} gxh4 {[%emt 0:01:30]} 32. Qh5 {[%emt 0:02:06]} Qf8 {[%emt 0:01:13]} 33. Qxh4 {[%emt 0:00:59]} f3 {[%emt 0:00:30]} 34. g3 {[%emt 0:00:30]} Kh7 {[%emt 0:04:14]} 35. Qh5 {[%emt 0:00:59]} Qg8 {[%emt 0:00:57]} 36. Qxf3 {[%emt 0:00:21]} Qf7 {[%emt 0:00:04]} 37. Qe4 {[%emt 0:03:18]} Kg7 {[%emt 0:00:23]} 38. b4 {[%emt 0:00:31]} cxb4 {[%emt 0:00:09]} 39. cxb4 {[%emt 0:00:07]} Qd7 {[%emt 0:00:55]} 40. a5 {[%emt 0:00:24]} bxa5 {[%emt 0:00:51]} 41. bxa5 {[%emt 0:00:03]} a6 {[%emt 0:00:10]} 42. Qg4+ {[%emt 0:03:31]} Kf8 {[%emt 0:00:28]} 43. Qg6 {[%emt 0:00:40]} Qd1+ {[%emt 0:00:50]} 44. Kh2 {[%emt 0:00:21]} Qd4 {[%emt 0:00:33]} 45. Qxh6+ {[%emt 0:00:10]} Kf7 {[%emt 0:00:08]} 46. Qe3 {[%emt 0:00:26]} Qb2 {[%emt 0:00:34]} 47. Qb6 {[%emt 0:00:26]} Qe2 {[%emt 0:00:06]} 48. Qe6+ {[%emt 0:00:36]} Qxe6 {[%emt 0:00:05]} 49. fxe6+ {[%emt 0:00:04]} Kxe6 {[%emt 0:00:04]} 50. Kh3 {[%emt 0:01:40]} Ke5 {[%emt 0:00:51]} 51. Kg4 {[%emt 0:00:42]} Ke4 {[%emt 0:00:17]} 52. f4 {[%emt 0:00:44]} 1-0